[Event "4. Memorial Svat.Hastika OPEN"]
[Site "Jesenik, Czech Republic"]
[Date "2022.09.03"]
[Round "4.2"]
[White "Cimburek, Jan"]
[Black "Gnida, Patrik"]
[Result "0-1"]
[TimeControl "720+3"]
[WhiteFideId "390283"]
[BlackFideId "351660"]
[WhiteElo "1591"]
[BlackElo "2092"]

1. Nf3 {[%clk 00:12:04]} {[%emt 00:00:02]} Nc6 {[%clk 00:11:44]} {[%emt
00:00:22]} 2. c4 {[%clk 00:11:25]} {[%emt 00:00:42]} e5 {[%clk 00:11:45]}
{[%emt 00:00:02]} 3. Nc3 {[%clk 00:11:26]} {[%emt 00:00:02]} Bb4 {[%clk
00:11:39]} {[%emt 00:00:09]} 4. d3 {[%clk 00:11:20]} {[%emt 00:00:09]} Bxc3+
{[%clk 00:11:40]} {[%emt 00:00:02]} 5. bxc3 {[%clk 00:11:22]} Nf6 {[%clk
00:11:41]} {[%emt 00:00:02]} 6. e4 {[%clk 00:10:58]} {[%emt 00:00:27]} d6
{[%clk 00:11:40]} {[%emt 00:00:04]} 7. g3 {[%clk 00:10:45]} {[%emt 00:00:16]}
O-O {[%clk 00:11:32]} {[%emt 00:00:11]} 8. Bg2 {[%clk 00:10:46]} {[%emt
00:00:01]} Be6 {[%clk 00:11:31]} {[%emt 00:00:03]} 9. O-O {[%clk 00:10:47]}
{[%emt 00:00:04]} h6 {[%clk 00:11:33]} 10. Bb2 {[%clk 00:10:35]} {[%emt
00:00:15]} a6 {[%clk 00:11:24]} {[%emt 00:00:12]} 11. Nd2 {[%clk 00:10:17]}
{[%emt 00:00:20]} b5 {[%clk 00:11:19]} {[%emt 00:00:08]} 12. cxb5 {[%clk
00:10:11]} {[%emt 00:00:10]} axb5 {[%clk 00:11:21]} 13. a3 {[%clk 00:10:08]}
{[%emt 00:00:06]} Qd7 {[%clk 00:11:11]} {[%emt 00:00:13]} 14. d4 {[%clk
00:10:07]} {[%emt 00:00:03]} Na5 {[%clk 00:11:02]} {[%emt 00:00:13]} 15. d5
{[%clk 00:10:02]} {[%emt 00:00:08]} Bh3 {[%clk 00:11:01]} {[%emt 00:00:04]} 16.
Qe2 {[%clk 00:09:48]} {[%emt 00:00:17]} Rfb8 {[%clk 00:10:57]} {[%emt
00:00:06]} 17. Bc1 {[%clk 00:09:24]} {[%emt 00:00:28]} Nc4 {[%clk 00:10:38]}
{[%emt 00:00:22]} 18. Re1 {[%clk 00:08:12]} {[%emt 00:01:14]} Bxg2 {[%clk
00:10:33]} {[%emt 00:00:08]} 19. Kxg2 {[%clk 00:08:12]} {[%emt 00:00:04]} Ra4
{[%clk 00:10:34]} {[%emt 00:00:02]} 20. Qd3 {[%clk 00:06:30]} {[%emt 00:01:45]}
Qe8 {[%clk 00:10:22]} {[%emt 00:00:15]} 21. f3 {[%clk 00:05:37]} {[%emt
00:00:56]} Nd7 {[%clk 00:10:22]} {[%emt 00:00:02]} 22. Nxc4 {[%clk 00:05:32]}
{[%emt 00:00:08]} bxc4 {[%clk 00:10:23]} {[%emt 00:00:03]} 23. Qc2 {[%clk
00:05:26]} {[%emt 00:00:08]} Nc5 {[%clk 00:10:24]} {[%emt 00:00:02]} 24. Re2
{[%clk 00:04:50]} {[%emt 00:00:39]} Ra5 {[%clk 00:09:33]} {[%emt 00:00:54]} 25.
f4 {[%clk 00:04:05]} {[%emt 00:00:49]} Rb3 {[%clk 00:09:19]} {[%emt 00:00:17]}
26. Rb1 {[%clk 00:03:35]} {[%emt 00:00:32]} Ra4 {[%clk 00:08:12]} {[%emt
00:01:10]} 27. Be3 {[%clk 00:02:15]} {[%emt 00:01:24]} Qb5 {[%clk 00:08:06]}
{[%emt 00:00:09]} 28. Bxc5 {[%clk 00:02:11]} {[%emt 00:00:05]} Rxb1 {[%clk
00:08:00]} {[%emt 00:00:10]} 29. Bb4 {[%clk 00:02:11]} {[%emt 00:00:04]} Ra1
{[%clk 00:07:07]} {[%emt 00:00:56]} 30. Rd2 {[%clk 00:01:33]} {[%emt 00:00:40]}
Ra8 {[%clk 00:06:53]} {[%emt 00:00:17]} 31. fxe5 {[%clk 00:01:05]} {[%emt
00:00:32]} dxe5 {[%clk 00:06:36]} {[%emt 00:00:20]} 32. Rf2 {[%clk 00:00:31]}
{[%emt 00:00:37]} c5 {[%clk 00:06:29]} {[%emt 00:00:10]} 33. dxc6 {[%clk
00:00:29]} {[%emt 00:00:05]} Qxc6 {[%clk 00:06:31]} 34. Rd2 {[%clk 00:00:24]}
{[%emt 00:00:08]} Re1 {[%clk 00:06:26]} {[%emt 00:00:08]} 35. Rd5 {[%clk
00:00:21]} {[%emt 00:00:07]} Qf6 {[%clk 00:06:01]} {[%emt 00:00:27]} 36. Qf2
{[%clk 00:00:17]} {[%emt 00:00:07]} Qxf2+ {[%clk 00:05:43]} {[%emt 00:00:20]}
37. Kxf2 {[%clk 00:00:19]} Rxe4 {[%clk 00:05:45]} {[%emt 00:00:02]} 38. Kf3
{[%clk 00:00:21]} {[%emt 00:00:01]} f5 {[%clk 00:05:35]} {[%emt 00:00:13]} 39.
h3 {[%clk 00:00:10]} {[%emt 00:00:14]} h5 {[%clk 00:05:28]} {[%emt 00:00:10]}
40. Rd6 {[%clk 00:00:10]} {[%emt 00:00:03]} Ra7 {[%clk 00:05:06]} {[%emt
00:00:25]} 41. Rd5 {[%clk 00:00:12]} Kf7 {[%clk 00:05:05]} {[%emt 00:00:04]} 42.
Bc5 {[%clk 00:00:14]} Rc7 {[%clk 00:04:29]} {[%emt 00:00:38]} 43. Bb4 {[%clk
00:00:16]} {[%emt 00:00:02]} g5 {[%clk 00:04:19]} {[%emt 00:00:13]} 44. g4
{[%clk 00:00:17]} {[%emt 00:00:02]} Rf4+ {[%clk 00:04:00]} {[%emt 00:00:22]} 45.
Ke3 {[%clk 00:00:14]} {[%emt 00:00:05]} Re4+ {[%clk 00:03:43]} {[%emt
00:00:21]} 46. Kf3 {[%clk 00:00:16]} hxg4+ {[%clk 00:03:13]} {[%emt 00:00:32]}
47. hxg4 {[%clk 00:00:19]} Rxg4 {[%clk 00:03:15]} {[%emt 00:00:01]} 48. Rxe5
{[%clk 00:00:21]} Rf4+ {[%clk 00:03:14]} {[%emt 00:00:04]} 49. Kg3 {[%clk
00:00:23]} Rd7 {[%clk 00:03:16]} {[%emt 00:00:01]} 50. a4 {[%clk 00:00:20]}
{[%emt 00:00:06]} Rd3+ {[%clk 00:03:17]} {[%emt 00:00:02]} 51. Kg2 {[%clk
00:00:22]} {[%emt 00:00:01]} Kf6 {[%clk 00:03:13]} {[%emt 00:00:07]} 52. Rc5
{[%clk 00:00:24]} Re4 {[%clk 00:03:11]} {[%emt 00:00:04]} 53. a5 {[%clk
00:00:26]} {[%emt 00:00:02]} Re2+ {[%clk 00:03:10]} {[%emt 00:00:04]} 54. Kf1
{[%clk 00:00:28]} {[%emt 00:00:01]} Ra2 {[%clk 00:03:11]} {[%emt 00:00:02]} 55.
Rc6+ {[%clk 00:00:26]} {[%emt 00:00:04]} Ke5 {[%clk 00:03:09]} {[%emt
00:00:04]} 0-1

[Event "4. Memorial Svat.Hastika OPEN"]
[Site "Jesenik, Czech Republic"]
[Date "2022.09.03"]
[Round "4.3"]
[White "Bares, Jachym"]
[Black "Gawlas, Roman"]
[Result "0-1"]
[TimeControl "720+3"]
[WhiteFideId "345075"]
[BlackFideId "351652"]
[WhiteElo "1978"]
[BlackElo "1906"]

1. e4 {[%clk 00:12:04]} {[%emt 00:00:02]} c5 {[%clk 00:11:58]} {[%emt
00:00:08]} 2. Nf3 {[%clk 00:12:06]} {[%emt 00:00:02]} e6 {[%clk 00:12:00]} 3.
d4 {[%clk 00:12:08]} cxd4 {[%clk 00:12:02]} 4. Nxd4 {[%clk 00:12:09]} Nc6
{[%clk 00:12:05]} 5. Nc3 {[%clk 00:11:59]} {[%emt 00:00:13]} Qc7 {[%clk
00:12:06]} {[%emt 00:00:02]} 6. Be3 {[%clk 00:11:47]} {[%emt 00:00:15]} a6
{[%clk 00:12:08]} {[%emt 00:00:01]} 7. Bd3 {[%clk 00:11:16]} {[%emt 00:00:34]}
Nf6 {[%clk 00:12:04]} {[%emt 00:00:07]} 8. O-O {[%clk 00:10:55]} {[%emt
00:00:24]} b5 {[%clk 00:12:05]} {[%emt 00:00:01]} 9. Kh1 {[%clk 00:10:14]}
{[%emt 00:00:43]} Bb7 {[%clk 00:11:50]} {[%emt 00:00:18]} 10. a3 {[%clk
00:09:47]} {[%emt 00:00:30]} Nxd4 {[%clk 00:11:09]} {[%emt 00:00:44]} 11. Bxd4
{[%clk 00:09:48]} {[%emt 00:00:01]} Bc5 {[%clk 00:11:09]} {[%emt 00:00:02]} 12.
Bxc5 {[%clk 00:05:03]} {[%emt 00:04:49]} Qxc5 {[%clk 00:11:11]} {[%emt
00:00:02]} 13. f4 {[%clk 00:04:50]} {[%emt 00:00:16]} d6 {[%clk 00:11:09]}
{[%emt 00:00:05]} 14. Qe2 {[%clk 00:03:55]} {[%emt 00:00:57]} e5 {[%clk
00:09:43]} {[%emt 00:01:30]} 15. Rad1 {[%clk 00:03:46]} {[%emt 00:00:11]} O-O
{[%clk 00:08:31]} {[%emt 00:01:15]} 16. fxe5 {[%clk 00:03:21]} {[%emt
00:00:29]} dxe5 {[%clk 00:07:21]} {[%emt 00:01:12]} 17. Rxf6 {[%clk 00:02:19]}
{[%emt 00:01:04]} gxf6 {[%clk 00:07:22]} {[%emt 00:00:02]} 18. Nd5 {[%clk
00:02:22]} Bxd5 {[%clk 00:03:27]} {[%emt 00:03:58]} 19. exd5 {[%clk 00:02:23]}
{[%emt 00:00:02]} Rfd8 {[%clk 00:03:27]} {[%emt 00:00:03]} 20. Qh5 {[%clk
00:01:42]} {[%emt 00:00:45]} Kf8 {[%clk 00:02:53]} {[%emt 00:00:37]} 21. Qxh7
{[%clk 00:01:24]} {[%emt 00:00:20]} Qxd5 {[%clk 00:02:42]} {[%emt 00:00:15]} 22.
Rf1 {[%clk 00:01:10]} {[%emt 00:00:16]} Ke7 {[%clk 00:02:21]} {[%emt 00:00:24]}
23. Be4 {[%clk 00:01:04]} {[%emt 00:00:09]} Qc4 {[%clk 00:02:18]} {[%emt
00:00:06]} 24. Qf5 {[%clk 00:01:06]} {[%emt 00:00:01]} Qe6 {[%clk 00:01:22]}
{[%emt 00:01:00]} 25. Qxe6+ {[%clk 00:01:03]} {[%emt 00:00:05]} Kxe6 {[%clk
00:01:05]} {[%emt 00:00:20]} 26. Bxa8 {[%clk 00:01:05]} Rxa8 {[%clk 00:01:07]}
27. Rd1 {[%clk 00:01:08]} Rc8 {[%clk 00:01:03]} {[%emt 00:00:07]} 28. c3 {[%clk
00:01:10]} f5 {[%clk 00:00:59]} {[%emt 00:00:06]} 29. Kg1 {[%clk 00:01:12]} Rc4
{[%clk 00:00:58]} {[%emt 00:00:04]} 30. Kf2 {[%clk 00:01:10]} {[%emt 00:00:05]}
e4 {[%clk 00:00:45]} {[%emt 00:00:16]} 31. Ke3 {[%clk 00:01:02]} {[%emt
00:00:10]} Rc8 {[%clk 00:00:35]} {[%emt 00:00:14]} 32. g3 {[%clk 00:01:00]}
{[%emt 00:00:05]} Rh8 {[%clk 00:00:23]} {[%emt 00:00:16]} 33. Rd2 {[%clk
00:01:02]} f6 {[%clk 00:00:16]} {[%emt 00:00:10]} 34. Kf4 {[%clk 00:00:55]}
{[%emt 00:00:09]} Rg8 {[%clk 00:00:16]} {[%emt 00:00:03]} 35. h3 {[%clk
00:00:52]} {[%emt 00:00:07]} Rh8 {[%clk 00:00:18]} 36. h4 {[%clk 00:00:38]}
{[%emt 00:00:16]} Rg8 {[%clk 00:00:20]} 37. Rg2 {[%clk 00:00:40]} {[%emt
00:00:02]} Rg4+ {[%clk 00:00:21]} {[%emt 00:00:02]} 38. Ke3 {[%clk 00:00:42]}
f4+ {[%clk 00:00:07]} {[%emt 00:00:17]} 39. Kxe4 {[%clk 00:00:43]} {[%emt
00:00:02]} fxg3+ {[%clk 00:00:08]} {[%emt 00:00:02]} 40. Kf3 {[%clk 00:00:43]}
{[%emt 00:00:03]} Rxh4 {[%clk 00:00:09]} {[%emt 00:00:02]} 41. Rxg3 {[%clk
00:00:41]} {[%emt 00:00:06]} Rh2 {[%clk 00:00:11]} 42. b3 {[%clk 00:00:15]}
{[%emt 00:00:29]} Rb2 {[%clk 00:00:10]} {[%emt 00:00:04]} 43. b4 {[%clk
00:00:04]} {[%emt 00:00:15]} Rb3 {[%clk 00:00:12]} 44. Ke4 {[%emt 00:00:03]}
Rxa3 {[%clk 00:00:12]} {[%emt 00:00:02]} 45. Kd4 {[%clk 00:00:06]} Ra1 {[%clk
00:00:10]} {[%emt 00:00:06]} 46. Re3+ {[%clk 00:00:08]} Kd6 {[%clk 00:00:10]}
{[%emt 00:00:03]} 47. Rf3 {[%clk 00:00:11]} Ke6 {[%clk 00:00:10]} {[%emt
00:00:03]} 48. c4 {[%clk 00:00:13]} Rd1+ {[%clk 00:00:07]} {[%emt 00:00:06]} 49.
Kc5 {[%clk 00:00:06]} {[%emt 00:00:10]} Rc1 {[%clk 00:00:09]} 50. Kb6 {[%clk
00:00:05]} {[%emt 00:00:04]} Rxc4 {[%clk 00:00:10]} {[%emt 00:00:02]} 51. Kxa6
{[%clk 00:00:05]} {[%emt 00:00:03]} Rxb4 {[%clk 00:00:11]} 52. Ka5 {[%clk
00:00:07]} {[%emt 00:00:01]} Rb1 {[%clk 00:00:13]} 53. Kb6 {[%clk 00:00:08]}
{[%emt 00:00:02]} Ke5 {[%clk 00:00:15]} 54. Kc5 {[%clk 00:00:10]} {[%emt
00:00:01]} f5 {[%clk 00:00:16]} {[%emt 00:00:03]} 55. Re3 {[%clk 00:00:12]} Kf4
{[%clk 00:00:18]} 56. Re8 {[%clk 00:00:12]} {[%emt 00:00:03]} Kg3 {[%clk
00:00:19]} {[%emt 00:00:02]} 57. Kd4 {[%clk 00:00:12]} {[%emt 00:00:02]} f4
{[%clk 00:00:18]} {[%emt 00:00:04]} 58. Rg8+ {[%clk 00:00:15]} Kf2 {[%clk
00:00:20]} {[%emt 00:00:01]} 59. Ke4 {[%clk 00:00:17]} {[%emt 00:00:01]} f3
{[%clk 00:00:20]} {[%emt 00:00:03]} 60. Rf8 {[%clk 00:00:16]} {[%emt 00:00:03]}
Re1+ {[%clk 00:00:21]} {[%emt 00:00:02]} 61. Kf4 {[%clk 00:00:17]} {[%emt
00:00:02]} b4 {[%clk 00:00:17]} {[%emt 00:00:07]} 62. Rb8 {[%clk 00:00:18]}
{[%emt 00:00:02]} Rb1 {[%clk 00:00:18]} {[%emt 00:00:03]} 63. Rh8 {[%clk
00:00:20]} {[%emt 00:00:01]} Kg2 {[%clk 00:00:15]} {[%emt 00:00:04]} 64. Rg8+
{[%clk 00:00:22]} {[%emt 00:00:02]} Kf2 {[%clk 00:00:10]} {[%emt 00:00:07]} 65.
Rh8 {[%clk 00:00:25]} {[%emt 00:00:02]} Rb3 {[%clk 00:00:06]} {[%emt 00:00:06]}
66. Rb8 {[%clk 00:00:10]} {[%emt 00:00:18]} Kf1 {[%clk 00:00:07]} {[%emt
00:00:02]} 67. Rd8 {[%clk 00:00:04]} {[%emt 00:00:09]} f2 {[%clk 00:00:09]}
{[%emt 00:00:02]} 0-1

[Event "4. Memorial Svat.Hastika OPEN"]
[Site "Jesenik, Czech Republic"]
[Date "2022.09.03"]
[Round "4.5"]
[White "Zrubek, Dan"]
[Black "Skovron, Josef"]
[Result "1-0"]
[TimeControl "720+3"]
[WhiteFideId "23718714"]
[BlackFideId "329886"]
[WhiteElo "1504"]
[BlackElo "1821"]

1. e4 {[%clk 00:12:04]} {[%emt 00:00:02]} c5 {[%clk 00:12:05]} 2. Nf3 {[%clk
00:12:05]} {[%emt 00:00:01]} Nc6 {[%clk 00:12:07]} 3. d4 {[%clk 00:12:07]}
{[%emt 00:00:01]} cxd4 {[%clk 00:12:08]} {[%emt 00:00:02]} 4. Nxd4 {[%clk
00:12:09]} Nf6 {[%clk 00:12:10]} 5. Nc3 {[%clk 00:12:11]} {[%emt 00:00:02]} e5
{[%clk 00:12:11]} 6. Ndb5 {[%clk 00:12:12]} {[%emt 00:00:02]} d6 {[%clk
00:12:12]} {[%emt 00:00:02]} 7. Nd5 {[%clk 00:12:14]} {[%emt 00:00:02]} Nxd5
{[%clk 00:12:07]} {[%emt 00:00:07]} 8. exd5 {[%clk 00:12:16]} {[%emt 00:00:01]}
Ne7 {[%clk 00:12:04]} {[%emt 00:00:06]} 9. c4 {[%clk 00:12:18]} {[%emt
00:00:02]} Nf5 {[%clk 00:12:05]} 10. Bd3 {[%clk 00:11:36]} {[%emt 00:00:46]}
Be7 {[%clk 00:11:45]} {[%emt 00:00:23]} 11. O-O {[%clk 00:11:20]} {[%emt
00:00:19]} O-O {[%clk 00:11:35]} {[%emt 00:00:13]} 12. Qc2 {[%clk 00:11:18]}
{[%emt 00:00:05]} g6 {[%clk 00:11:22]} {[%emt 00:00:15]} 13. Kh1 {[%clk
00:10:57]} {[%emt 00:00:25]} a6 {[%clk 00:11:20]} {[%emt 00:00:05]} 14. Nc3
{[%clk 00:10:59]} {[%emt 00:00:01]} Ng7 {[%clk 00:10:28]} {[%emt 00:00:55]} 15.
Be3 {[%clk 00:10:38]} {[%emt 00:00:23]} f5 {[%clk 00:10:22]} {[%emt 00:00:09]}
16. f4 {[%clk 00:10:40]} {[%emt 00:00:01]} e4 {[%clk 00:10:19]} {[%emt
00:00:06]} 17. Be2 {[%clk 00:10:42]} {[%emt 00:00:02]} Ne8 {[%clk 00:09:59]}
{[%emt 00:00:22]} 18. Na4 {[%clk 00:10:38]} {[%emt 00:00:08]} Nf6 {[%clk
00:08:18]} {[%emt 00:01:43]} 19. Rfd1 {[%clk 00:10:09]} {[%emt 00:00:33]} Qe8
{[%clk 00:07:24]} {[%emt 00:00:57]} 20. Nb6 {[%clk 00:08:01]} {[%emt 00:02:11]}
Rb8 {[%clk 00:07:25]} {[%emt 00:00:02]} 21. b4 {[%clk 00:07:48]} {[%emt
00:00:16]} Qf7 {[%clk 00:07:14]} {[%emt 00:00:13]} 22. Rac1 {[%clk 00:06:45]}
{[%emt 00:01:07]} Nd7 {[%clk 00:07:00]} {[%emt 00:00:15]} 23. Nxc8 {[%clk
00:05:24]} {[%emt 00:01:25]} Rfxc8 {[%clk 00:07:00]} {[%emt 00:00:03]} 24. Qa4
{[%clk 00:05:18]} {[%emt 00:00:08]} Nf6 {[%clk 00:06:42]} {[%emt 00:00:22]} 25.
c5 {[%clk 00:04:34]} {[%emt 00:00:48]} Kh8 {[%clk 00:04:22]} {[%emt 00:02:23]}
26. Bd4 {[%clk 00:04:02]} {[%emt 00:00:34]} h6 {[%clk 00:03:52]} {[%emt
00:00:33]} 27. c6 {[%clk 00:03:07]} {[%emt 00:00:59]} Kh7 {[%clk 00:02:24]}
{[%emt 00:01:31]} 28. Ba7 {[%clk 00:00:51]} {[%emt 00:02:19]} b5 {[%clk
00:01:05]} {[%emt 00:01:22]} 29. Qxa6 {[%clk 00:00:29]} {[%emt 00:00:26]} Ra8
{[%clk 00:01:05]} {[%emt 00:00:02]} 30. Qb7 {[%clk 00:00:20]} {[%emt 00:00:12]}
g5 {[%clk 00:00:42]} {[%emt 00:00:26]} 31. Bxb5 {[%emt 00:00:19]} gxf4 {[%clk
00:00:30]} {[%emt 00:00:14]} 32. c7 {[%clk 00:00:04]} {[%emt 00:00:04]} Ng4
{[%clk 00:00:11]} {[%emt 00:00:22]} 33. Bd7 {[%clk 00:00:06]} {[%emt 00:00:02]}
Qh5 {[%clk 00:00:06]} {[%emt 00:00:08]} 34. h3 {[%emt 00:00:20]} 1-0

[Event "4. Memorial Svat.Hastika OPEN"]
[Site "Jesenik, Czech Republic"]
[Date "2022.09.03"]
[Round "4.6"]
[White "Taborsky, Bedrich"]
[Black "Cechacek, Miroslav"]
[Result "0-1"]
[TimeControl "720+3"]
[WhiteFideId "378151"]
[BlackFideId "377090"]
[WhiteElo "1793"]
[BlackElo "1541"]

1. e4 {[%clk 00:12:04]} {[%emt 00:00:02]} c5 {[%clk 00:12:04]} {[%emt
00:00:02]} 2. Nf3 {[%clk 00:12:05]} {[%emt 00:00:02]} Nc6 {[%clk 00:12:04]}
{[%emt 00:00:03]} 3. Nc3 {[%clk 00:12:07]} {[%emt 00:00:02]} Nf6 {[%clk
00:12:04]} {[%emt 00:00:02]} 4. g3 {[%clk 00:12:07]} {[%emt 00:00:02]} e6
{[%clk 00:12:06]} {[%emt 00:00:02]} 5. Bg2 {[%clk 00:12:09]} {[%emt 00:00:02]}
Be7 {[%clk 00:12:03]} {[%emt 00:00:06]} 6. O-O {[%clk 00:12:10]} {[%emt
00:00:02]} O-O {[%clk 00:12:02]} {[%emt 00:00:04]} 7. d3 {[%clk 00:12:11]}
{[%emt 00:00:01]} d5 {[%clk 00:12:02]} {[%emt 00:00:03]} 8. exd5 {[%clk
00:12:10]} {[%emt 00:00:04]} exd5 {[%clk 00:12:00]} {[%emt 00:00:05]} 9. Bd2
{[%clk 00:11:55]} {[%emt 00:00:17]} a6 {[%clk 00:12:00]} {[%emt 00:00:05]} 10.
a3 {[%clk 00:11:56]} b5 {[%clk 00:11:53]} {[%emt 00:00:10]} 11. Re1 {[%clk
00:11:58]} {[%emt 00:00:02]} Bb7 {[%clk 00:11:50]} {[%emt 00:00:06]} 12. Ne2
{[%clk 00:10:49]} {[%emt 00:01:12]} Bd6 {[%clk 00:11:34]} {[%emt 00:00:18]} 13.
Bg5 {[%clk 00:10:43]} {[%emt 00:00:09]} h6 {[%clk 00:11:28]} {[%emt 00:00:09]}
14. Bf4 {[%clk 00:10:43]} {[%emt 00:00:03]} Nh5 {[%clk 00:10:50]} {[%emt
00:00:41]} 15. Bxd6 {[%clk 00:10:44]} {[%emt 00:00:02]} Qxd6 {[%clk 00:10:51]}
{[%emt 00:00:02]} 16. c3 {[%clk 00:10:13]} {[%emt 00:00:33]} Rae8 {[%clk
00:10:53]} {[%emt 00:00:02]} 17. d4 {[%clk 00:09:41]} {[%emt 00:00:35]} c4
{[%clk 00:10:10]} {[%emt 00:00:46]} 18. a4 {[%clk 00:09:32]} {[%emt 00:00:12]}
Re7 {[%clk 00:09:38]} {[%emt 00:00:35]} 19. axb5 {[%clk 00:09:27]} {[%emt
00:00:09]} axb5 {[%clk 00:09:39]} {[%emt 00:00:01]} 20. Nc1 {[%clk 00:08:42]}
{[%emt 00:00:48]} Rfe8 {[%clk 00:09:39]} {[%emt 00:00:04]} 21. Rxe7 {[%clk
00:08:43]} {[%emt 00:00:02]} Rxe7 {[%clk 00:09:30]} {[%emt 00:00:11]} 22. Nd2
{[%clk 00:08:34]} {[%emt 00:00:11]} Nf6 {[%clk 00:08:59]} {[%emt 00:00:35]} 23.
Ne2 {[%clk 00:08:26]} {[%emt 00:00:10]} g5 {[%clk 00:07:45]} {[%emt 00:01:18]}
24. f4 {[%clk 00:08:23]} {[%emt 00:00:06]} Qe6 {[%clk 00:07:36]} {[%emt
00:00:12]} 25. Bf1 {[%clk 00:08:15]} {[%emt 00:00:10]} Qe3+ {[%clk 00:07:31]}
{[%emt 00:00:10]} 26. Kg2 {[%clk 00:08:12]} {[%emt 00:00:05]} Ne4 {[%clk
00:07:21]} {[%emt 00:00:13]} 27. Nxe4 {[%clk 00:08:08]} {[%emt 00:00:07]} Qxe4+
{[%clk 00:07:18]} {[%emt 00:00:05]} 28. Kg1 {[%emt 00:00:59]} Qe3+ {[%clk
00:06:00]} {[%emt 00:00:32]} 29. Kg2 {[%clk 00:08:02]} {[%emt 00:00:01]} g4
{[%clk 00:06:03]} 30. Rc1 {[%clk 00:07:26]} {[%emt 00:00:42]} Bc8 {[%clk
00:05:32]} {[%emt 00:00:33]} 31. Rc2 {[%clk 00:07:26]} {[%emt 00:00:03]} Bf5
{[%clk 00:05:33]} {[%emt 00:00:02]} 32. h3 {[%clk 00:07:15]} {[%emt 00:00:14]}
Be4+ {[%clk 00:05:33]} {[%emt 00:00:03]} 33. Kh2 {[%clk 00:07:15]} {[%emt
00:00:02]} Bxc2 {[%clk 00:05:25]} {[%emt 00:00:12]} 34. Qxc2 {[%clk 00:07:15]}
{[%emt 00:00:02]} Qf2+ {[%clk 00:05:15]} {[%emt 00:00:13]} 0-1

[Event "4. Memorial Svat.Hastika OPEN"]
[Site "Jesenik, Czech Republic"]
[Date "2022.09.03"]
[Round "4.8"]
[White "Poljak, Lucian"]
[Black "Cempel, Jaroslav"]
[Result "0-1"]
[TimeControl "720+3"]
[WhiteFideId "23740590"]
[BlackFideId "300730"]
[WhiteElo "1367"]
[BlackElo "1911"]

1. e4 {[%clk 00:12:04]} {[%emt 00:00:02]} d5 {[%clk 00:11:59]} {[%emt
00:00:07]} 2. exd5 {[%clk 00:11:52]} {[%emt 00:00:15]} Qxd5 {[%clk 00:12:01]}
{[%emt 00:00:01]} 3. Nc3 {[%clk 00:11:55]} Qd6 {[%clk 00:12:03]} {[%emt
00:00:01]} 4. d4 {[%clk 00:11:46]} {[%emt 00:00:12]} Nf6 {[%clk 00:12:04]} 5.
Nf3 {[%clk 00:11:36]} {[%emt 00:00:13]} Nc6 {[%clk 00:12:06]} {[%emt 00:00:02]}
6. Bb5 {[%clk 00:11:35]} {[%emt 00:00:03]} Bd7 {[%clk 00:12:04]} {[%emt
00:00:04]} 7. O-O {[%clk 00:10:47]} {[%emt 00:00:52]} e6 {[%clk 00:11:50]}
{[%emt 00:00:17]} 8. Re1 {[%clk 00:10:11]} {[%emt 00:00:38]} Be7 {[%clk
00:11:51]} {[%emt 00:00:02]} 9. Bg5 {[%clk 00:10:00]} {[%emt 00:00:14]} a6
{[%clk 00:11:29]} {[%emt 00:00:25]} 10. Ba4 {[%clk 00:09:52]} {[%emt 00:00:12]}
O-O {[%clk 00:10:58]} {[%emt 00:00:34]} 11. Bxf6 {[%clk 00:08:42]} {[%emt
00:01:12]} Bxf6 {[%clk 00:10:47]} {[%emt 00:00:14]} 12. Ne4 {[%clk 00:08:37]}
{[%emt 00:00:08]} Qe7 {[%clk 00:10:19]} {[%emt 00:00:30]} 13. d5 {[%clk
00:07:58]} {[%emt 00:00:43]} exd5 {[%clk 00:09:35]} {[%emt 00:00:46]} 14. Qxd5
{[%clk 00:07:21]} {[%emt 00:00:41]} Be6 {[%clk 00:09:09]} {[%emt 00:00:29]} 15.
Nxf6+ {[%clk 00:06:45]} {[%emt 00:00:39]} Qxf6 {[%clk 00:09:11]} 16. Qe4 {[%clk
00:06:06]} {[%emt 00:00:43]} Nd8 {[%clk 00:05:55]} {[%emt 00:03:18]} 17. c3
{[%clk 00:05:20]} {[%emt 00:00:49]} c6 {[%clk 00:04:56]} {[%emt 00:01:02]} 18.
Bc2 {[%emt 00:00:27]} g6 {[%clk 00:04:50]} {[%emt 00:00:09]} 19. Rad1 {[%clk
00:04:53]} {[%emt 00:00:07]} Bf5 {[%clk 00:04:01]} {[%emt 00:00:48]} 20. Qe2
{[%clk 00:03:43]} {[%emt 00:01:16]} Bg4 {[%clk 00:03:45]} {[%emt 00:00:19]} 21.
Rd3 {[%clk 00:02:36]} {[%emt 00:01:10]} Ne6 {[%clk 00:03:31]} {[%emt 00:00:17]}
22. h3 {[%clk 00:02:26]} {[%emt 00:00:14]} Nf4 {[%clk 00:02:50]} {[%emt
00:00:45]} 23. Qe5 {[%clk 00:01:43]} {[%emt 00:00:45]} Qxe5 {[%clk 00:02:48]}
{[%emt 00:00:04]} 24. Rxe5 {[%clk 00:01:38]} {[%emt 00:00:09]} Nxd3 {[%clk
00:02:48]} {[%emt 00:00:03]} 25. Bxd3 {[%clk 00:01:39]} {[%emt 00:00:02]} Bxf3
{[%clk 00:02:47]} {[%emt 00:00:04]} 26. gxf3 {[%clk 00:01:39]} {[%emt
00:00:04]} Rfe8 {[%clk 00:02:41]} {[%emt 00:00:09]} 27. Rg5 {[%clk 00:01:26]}
{[%emt 00:00:15]} Rad8 {[%clk 00:02:32]} {[%emt 00:00:12]} 28. Bc4 {[%clk
00:01:10]} {[%emt 00:00:19]} Kg7 {[%clk 00:02:23]} {[%emt 00:00:13]} 29. Rg4
{[%clk 00:01:01]} {[%emt 00:00:12]} f5 {[%clk 00:02:18]} {[%emt 00:00:07]} 30.
Rh4 {[%clk 00:00:52]} {[%emt 00:00:12]} b5 {[%clk 00:02:14]} {[%emt 00:00:07]}
31. Bb3 {[%clk 00:00:47]} {[%emt 00:00:08]} Rd2 {[%clk 00:02:11]} {[%emt
00:00:06]} 32. Kg2 {[%clk 00:00:30]} {[%emt 00:00:21]} Ree2 {[%clk 00:02:06]}
{[%emt 00:00:06]} 33. Kg3 {[%clk 00:00:11]} {[%emt 00:00:23]} Rxf2 {[%clk
00:01:44]} {[%emt 00:00:25]} 34. Rd4 {[%clk 00:00:09]} {[%emt 00:00:06]} Rxd4
{[%clk 00:01:38]} {[%emt 00:00:09]} 35. cxd4 {[%clk 00:00:11]} Rd2 {[%clk
00:01:34]} {[%emt 00:00:07]} 36. Kf4 {[%clk 00:00:11]} {[%emt 00:00:04]} Rxd4+
{[%clk 00:01:35]} {[%emt 00:00:02]} 37. Ke5 {[%emt 00:00:04]} Rd2 {[%clk
00:01:35]} 38. h4 {[%clk 00:00:10]} {[%emt 00:00:05]} c5 {[%clk 00:01:34]}
{[%emt 00:00:04]} 39. f4 {[%clk 00:00:07]} {[%emt 00:00:06]} c4 {[%clk
00:01:32]} {[%emt 00:00:06]} 0-1